[Event "Titled Tuesday Blitz August 1 Late 2023"]
[White "Kirillov, Dmitry"]
[Black "Kula, Robert"]
[WhiteFideId "34180572"]
[BlackFideId "1101218"]
[WhiteElo "2429"]
[BlackElo "2260"]
[Result "1-0"]
[Round "8"]
[TimeControl "180+1"]
[Date "2023.08.01"]
[WhiteClock "0:01:28"]
[BlackClock "0:00:00"]
[Board "97"]

1. d4 {[%clk 0:02:57]}  d5 {[%clk 0:02:59]} 2. Nf3 {[%clk 0:02:56]}  Nf6 {[%clk 0:02:59]} 3. c4 {[%clk 0:02:54]}  c6 {[%clk 0:02:59]} 4. e3 {[%clk 0:02:54]}  g6 {[%clk 0:02:54]} 5. Nc3 {[%clk 0:02:52]}  Bg7 {[%clk 0:02:55]} 6. cxd5 {[%clk 0:02:51]}  cxd5 {[%clk 0:02:54]} 7. Be2 {[%clk 0:02:51]}  O-O {[%clk 0:02:54]} 8. O-O {[%clk 0:02:52]}  Nc6 {[%clk 0:02:51]} 9. b3 {[%clk 0:02:52]}  Re8 {[%clk 0:02:49]} 10. Bb2 {[%clk 0:02:52]}  a6 {[%clk 0:02:46]} 11. Rc1 {[%clk 0:02:52]}  Bg4 {[%clk 0:02:43]} 12. h3 {[%clk 0:02:52]}  Bxf3 {[%clk 0:02:43]} 13. Bxf3 {[%clk 0:02:53]}  e6 {[%clk 0:02:43]} 14. Na4 {[%clk 0:02:53]}  Nd7 {[%clk 0:02:39]} 15. Qd2 {[%clk 0:02:52]}  f5 {[%clk 0:02:33]} 16. Rc2 {[%clk 0:02:51]}  g5 {[%clk 0:02:04]} 17. Ba3 {[%clk 0:02:22]}  Nf6 {[%clk 0:01:48]} 18. Be2 {[%clk 0:02:18]}  Ne4 {[%clk 0:01:44]} 19. Qc1 {[%clk 0:02:17]}  Rc8 {[%clk 0:01:40]} 20. Bh5 {[%clk 0:02:14]}  Qf6 {[%clk 0:01:11]} 21. Bxe8 {[%clk 0:02:06]}  Rxe8 {[%clk 0:01:11]} 22. Rxc6 {[%clk 0:01:58]}  bxc6 {[%clk 0:01:10]} 23. Qxc6 {[%clk 0:01:59]}  Qg6 {[%clk 0:01:04]} 24. Qxa6 {[%clk 0:01:58]}  g4 {[%clk 0:01:00]} 25. h4 {[%clk 0:01:54]}  g3 {[%clk 0:00:57]} 26. f3 {[%clk 0:01:53]}  Qf6 {[%clk 0:00:47]} 27. Qc6 {[%clk 0:01:34]}  Kf7 {[%clk 0:00:22]} 28. Qd7+ {[%clk 0:01:32]}  Kg6 {[%clk 0:00:11]} 29. Qxe8+ {[%clk 0:01:31]}  Kh6 {[%clk 0:00:11]} 30. fxe4 {[%clk 0:01:29]}  Qxh4 {[%clk 0:00:11]} 31. Qxe6+ {[%clk 0:01:29]}  Bf6 {[%clk 0:00:07]} 32. Bf8+ {[%clk 0:01:28]}  Kg6 {[%clk 0:00:05]} 33. Qxf5+ {[%clk 0:01:28]}  Kf7 {[%clk 0:00:05]} 34. Qxf6+ {[%clk 0:01:28]}  Qxf6 {[%clk 0:00:04]} 35. Rxf6+ {[%clk 0:01:29]}  Kxf6 {[%clk 0:00:00]} 36. exd5 {[%clk 0:01:28]} 1-0


[Site "https://www.chess.com"]

[Event "Titled Tuesday Blitz August 1 Late 2023"]
[White "KrokerGuy"]
[Black "campochess"]
[WhiteElo "2425"]
[BlackElo "2226"]
[Result "1-0"]
[Round "8"]
[TimeControl "180+1"]
[Date "2023.08.01"]
[WhiteClock "0:00:03"]
[BlackClock "0:00:00"]
[Board "99"]

1. e4 {[%clk 0:02:56]}  c5 {[%clk 0:02:59]} 2. Nf3 {[%clk 0:02:56]}  Nc6 {[%clk 0:02:59]} 3. d4 {[%clk 0:02:57]}  cxd4 {[%clk 0:02:59]} 4. Nxd4 {[%clk 0:02:58]}  e5 {[%clk 0:02:58]} 5. Nb5 {[%clk 0:02:58]}  a6 {[%clk 0:02:58]} 6. Nd6+ {[%clk 0:02:58]}  Bxd6 {[%clk 0:02:58]} 7. Qxd6 {[%clk 0:02:58]}  Qe7 {[%clk 0:02:58]} 8. Qxe7+ {[%clk 0:02:51]}  Ngxe7 {[%clk 0:02:57]} 9. c3 {[%clk 0:02:37]}  d5 {[%clk 0:02:55]} 10. exd5 {[%clk 0:02:37]}  Nxd5 {[%clk 0:02:53]} 11. Bc4 {[%clk 0:02:38]}  Be6 {[%clk 0:02:51]} 12. O-O {[%clk 0:02:28]}  O-O {[%clk 0:02:49]} 13. Bb3 {[%clk 0:02:28]}  Na5 {[%clk 0:02:48]} 14. Bc2 {[%clk 0:02:28]}  Nc4 {[%clk 0:02:45]} 15. Nd2 {[%clk 0:02:27]}  Nd6 {[%clk 0:02:32]} 16. Ne4 {[%clk 0:02:14]}  Nxe4 {[%clk 0:02:29]} 17. Bxe4 {[%clk 0:02:15]}  Rad8 {[%clk 0:02:28]} 18. Re1 {[%clk 0:01:48]}  b5 {[%clk 0:02:20]} 19. a4 {[%clk 0:01:38]}  Nb6 {[%clk 0:02:09]} 20. axb5 {[%clk 0:01:36]}  axb5 {[%clk 0:02:08]} 21. Ra5 {[%clk 0:01:33]}  Bc4 {[%clk 0:02:05]} 22. Be3 {[%clk 0:01:31]}  Nc8 {[%clk 0:01:56]} 23. Bc5 {[%clk 0:01:19]}  Rfe8 {[%clk 0:01:55]} 24. Bc6 {[%clk 0:01:18]}  Re6 {[%clk 0:01:55]} 25. Bxb5 {[%clk 0:01:19]}  Bxb5 {[%clk 0:01:48]} 26. Rxb5 {[%clk 0:01:20]}  f6 {[%clk 0:01:43]} 27. Kf1 {[%clk 0:00:59]}  Rc6 {[%clk 0:01:41]} 28. Ke2 {[%clk 0:00:55]}  Kf7 {[%clk 0:01:38]} 29. Rb7+ {[%clk 0:00:53]}  Kg6 {[%clk 0:01:38]} 30. b4 {[%clk 0:00:52]}  Ra6 {[%clk 0:01:31]} 31. Rd1 {[%clk 0:00:44]}  Ra2+ {[%clk 0:01:29]} 32. Ke1 {[%clk 0:00:45]}  Rxd1+ {[%clk 0:01:27]} 33. Kxd1 {[%clk 0:00:46]}  Ra8 {[%clk 0:01:05]} 34. Bf8 {[%clk 0:00:42]}  Kf5 {[%clk 0:01:04]} 35. Rxg7 {[%clk 0:00:39]}  Nb6 {[%clk 0:00:58]} 36. Bc5 {[%clk 0:00:35]}  Nc4 {[%clk 0:00:57]} 37. Kc2 {[%clk 0:00:36]}  e4 {[%clk 0:00:53]} 38. Rxh7 {[%clk 0:00:33]}  Ne5 {[%clk 0:00:51]} 39. h3 {[%clk 0:00:31]}  Ra2+ {[%clk 0:00:50]} 40. Kb3 {[%clk 0:00:31]}  Re2 {[%clk 0:00:49]} 41. Bd4 {[%clk 0:00:27]}  Nd3 {[%clk 0:00:48]} 42. g4+ {[%clk 0:00:25]}  Ke6 {[%clk 0:00:46]} 43. Rh6 {[%clk 0:00:20]}  Ne5 {[%clk 0:00:31]} 44. g5 {[%clk 0:00:15]}  Nd7 {[%clk 0:00:16]} 45. g6 {[%clk 0:00:12]}  Re1 {[%clk 0:00:09]} 46. Rh4 {[%clk 0:00:03]}  f5 {[%clk 0:00:08]} 47. g7 {[%clk 0:00:02]}  Rg1 {[%clk 0:00:00]} 48. Rh8 {[%clk 0:00:03]} 1-0


[Site "https://www.chess.com"]

[Event "Titled Tuesday Blitz August 1 Late 2023"]
[White "Kubatko, Ivan"]
[Black "Navyblue1"]
[WhiteFideId "24111473"]
[WhiteElo "2400"]
[BlackElo "1960"]
[Result "1-0"]
[Round "8"]
[TimeControl "180+1"]
[Date "2023.08.01"]
[WhiteClock "0:00:11"]
[BlackClock "0:00:00"]
[Board "102"]

1. e4 {[%clk 0:03:00]}  c5 {[%clk 0:02:59]} 2. Nc3 {[%clk 0:03:00]}  d6 {[%clk 0:02:53]} 3. f4 {[%clk 0:03:00]}  Nc6 {[%clk 0:02:48]} 4. Nf3 {[%clk 0:02:59]}  Nf6 {[%clk 0:02:48]} 5. h3 {[%clk 0:02:47]}  g6 {[%clk 0:02:46]} 6. g4 {[%clk 0:02:43]}  Bg7 {[%clk 0:02:46]} 7. Bc4 {[%clk 0:02:41]}  a6 {[%clk 0:02:42]} 8. a4 {[%clk 0:02:41]}  Rb8 {[%clk 0:02:39]} 9. d3 {[%clk 0:02:41]}  e6 {[%clk 0:02:22]} 10. O-O {[%clk 0:02:35]}  O-O {[%clk 0:02:17]} 11. Qe1 {[%clk 0:02:27]}  d5 {[%clk 0:02:14]} 12. Bb3 {[%clk 0:02:27]}  b5 {[%clk 0:02:09]} 13. axb5 {[%clk 0:02:25]}  axb5 {[%clk 0:02:09]} 14. Ba2 {[%clk 0:02:16]}  d4 {[%clk 0:01:15]} 15. Ne2 {[%clk 0:02:11]}  Nb4 {[%clk 0:01:10]} 16. Bb3 {[%clk 0:02:07]}  Qb6 {[%clk 0:00:58]} 17. Bd2 {[%clk 0:01:38]}  Nc6 {[%clk 0:00:46]} 18. Kg2 {[%clk 0:01:35]}  Ne8 {[%clk 0:00:38]} 19. Ng3 {[%clk 0:01:34]}  Nd6 {[%clk 0:00:36]} 20. e5 {[%clk 0:01:31]}  Ne8 {[%clk 0:00:23]} 21. Ne4 {[%clk 0:01:30]}  Ne7 {[%clk 0:00:18]} 22. Qh4 {[%clk 0:01:27]}  h6 {[%clk 0:00:16]} 23. Nf6+ {[%clk 0:01:07]}  Bxf6 {[%clk 0:00:13]} 24. exf6 {[%clk 0:01:07]}  Nd5 {[%clk 0:00:13]} 25. Bxd5 {[%clk 0:01:05]}  exd5 {[%clk 0:00:13]} 26. f5 {[%clk 0:00:40]}  Qxf6 {[%clk 0:00:11]} 27. Qxf6 {[%clk 0:00:36]}  Nxf6 {[%clk 0:00:11]} 28. Bxh6 {[%clk 0:00:37]}  Re8 {[%clk 0:00:11]} 29. Bf4 {[%clk 0:00:32]}  Rb7 {[%clk 0:00:10]} 30. fxg6 {[%clk 0:00:24]}  fxg6 {[%clk 0:00:10]} 31. Rfe1 {[%clk 0:00:21]}  Kg7 {[%clk 0:00:08]} 32. Be5 {[%clk 0:00:18]}  Kf7 {[%clk 0:00:06]} 33. Ng5+ {[%clk 0:00:18]}  Kg7 {[%clk 0:00:03]} 34. Bxf6+ {[%clk 0:00:18]}  Kxf6 {[%clk 0:00:03]} 35. Rxe8 {[%clk 0:00:18]}  Kxg5 {[%clk 0:00:04]} 36. Rxc8 {[%clk 0:00:18]}  c4 {[%clk 0:00:02]} 37. Rc5 {[%clk 0:00:16]}  c3 {[%clk 0:00:02]} 38. Rxd5+ {[%clk 0:00:16]}  Kf4 {[%clk 0:00:02]} 39. Rf1+ {[%clk 0:00:14]}  Ke3 {[%clk 0:00:02]} 40. Re5+ {[%clk 0:00:14]}  Kd2 {[%clk 0:00:02]} 41. Rf2+ {[%clk 0:00:15]}  Kc1 {[%clk 0:00:03]} 42. b3 {[%clk 0:00:11]}  Kb2 {[%clk 0:00:00]} 43. h4 {[%clk 0:00:11]} 1-0


[Site "https://www.chess.com"]

[Event "Titled Tuesday Blitz August 1 Late 2023"]
[White "Polaczek, Richard"]
[Black "Garcia-Castany Musellas, Gal.la"]
[WhiteFideId "200026"]
[BlackFideId "2241803"]
[WhiteElo "2418"]
[BlackElo "2325"]
[Result "1/2-1/2"]
[Round "8"]
[TimeControl "180+1"]
[Date "2023.08.01"]
[WhiteClock "0:00:05"]
[BlackClock "0:00:16"]
[Board "105"]

1. d4 {[%clk 0:02:59]}  Nf6 {[%clk 0:02:59]} 2. Bg5 {[%clk 0:02:58]}  Ne4 {[%clk 0:02:56]} 3. Bf4 {[%clk 0:02:57]}  c5 {[%clk 0:02:57]} 4. f3 {[%clk 0:02:56]}  Nf6 {[%clk 0:02:51]} 5. dxc5 {[%clk 0:02:55]}  Qa5+ {[%clk 0:02:50]} 6. Qd2 {[%clk 0:02:40]}  Qxd2+ {[%clk 0:02:30]} 7. Nxd2 {[%clk 0:02:37]}  Na6 {[%clk 0:02:30]} 8. Nb3 {[%clk 0:02:32]}  Nd5 {[%clk 0:02:23]} 9. Bd2 {[%clk 0:02:27]}  e6 {[%clk 0:02:19]} 10. e4 {[%clk 0:02:19]}  Ndb4 {[%clk 0:02:17]} 11. O-O-O {[%clk 0:01:43]}  Nxa2+ {[%clk 0:02:15]} 12. Kb1 {[%clk 0:01:42]}  N2b4 {[%clk 0:02:15]} 13. Be3 {[%clk 0:01:36]}  Rb8 {[%clk 0:01:41]} 14. c3 {[%clk 0:01:27]}  Nc6 {[%clk 0:01:41]} 15. Ne2 {[%clk 0:01:10]}  b6 {[%clk 0:01:41]} 16. cxb6 {[%clk 0:01:10]}  axb6 {[%clk 0:01:42]} 17. Ned4 {[%clk 0:01:08]}  Nc5 {[%clk 0:01:06]} 18. Nxc6 {[%clk 0:01:02]}  dxc6 {[%clk 0:01:07]} 19. Nd4 {[%clk 0:00:41]}  Bd7 {[%clk 0:01:01]} 20. b4 {[%clk 0:00:32]}  Na4 {[%clk 0:01:01]} 21. Kc2 {[%clk 0:00:31]}  c5 {[%clk 0:00:57]} 22. Bf4 {[%clk 0:00:25]}  Ra8 {[%clk 0:00:34]} 23. Nb5 {[%clk 0:00:22]}  Rc8 {[%clk 0:00:20]} 24. Nd6+ {[%clk 0:00:19]}  Bxd6 {[%clk 0:00:20]} 25. Bxd6 {[%clk 0:00:19]}  cxb4 {[%clk 0:00:20]} 26. Bxb4 {[%clk 0:00:18]}  Nc5 {[%clk 0:00:20]} 27. Be2 {[%clk 0:00:17]}  Bc6 {[%clk 0:00:19]} 28. Rd6 {[%clk 0:00:15]}  Ke7 {[%clk 0:00:18]} 29. Rhd1 {[%clk 0:00:14]}  Rhd8 {[%clk 0:00:17]} 30. Bxc5 {[%clk 0:00:13]}  bxc5 {[%clk 0:00:17]} 31. Rxd8 {[%clk 0:00:13]}  Rxd8 {[%clk 0:00:18]} 32. Rxd8 {[%clk 0:00:12]}  Kxd8 {[%clk 0:00:19]} 33. Kb3 {[%clk 0:00:11]}  Kc7 {[%clk 0:00:20]} 34. Bc4 {[%clk 0:00:10]}  Kb6 {[%clk 0:00:19]} 35. Kc2 {[%clk 0:00:09]}  Bb5 {[%clk 0:00:19]} 36. Kb3 {[%clk 0:00:09]}  Bxc4+ {[%clk 0:00:18]} 37. Kxc4 {[%clk 0:00:09]}  Kc6 {[%clk 0:00:18]} 38. e5 {[%clk 0:00:09]}  f6 {[%clk 0:00:17]} 39. f4 {[%clk 0:00:09]}  fxe5 {[%clk 0:00:16]} 40. fxe5 {[%clk 0:00:09]}  g6 {[%clk 0:00:15]} 41. g3 {[%clk 0:00:09]}  h6 {[%clk 0:00:15]} 42. g4 {[%clk 0:00:08]}  g5 {[%clk 0:00:15]} 43. h3 {[%clk 0:00:07]}  Kb6 {[%clk 0:00:15]} 44. Kb3 {[%clk 0:00:07]}  Kb5 {[%clk 0:00:15]} 45. c4+ {[%clk 0:00:07]}  Ka5 {[%clk 0:00:16]} 46. Ka3 {[%clk 0:00:07]}  Kb6 {[%clk 0:00:15]} 47. Ka4 {[%clk 0:00:06]}  Ka6 {[%clk 0:00:16]} 48. Kb3 {[%clk 0:00:06]}  Kb6 {[%clk 0:00:15]} 49. Ka4 {[%clk 0:00:06]}  Ka6 {[%clk 0:00:16]} 50. Kb3 {[%clk 0:00:05]}  Kb6 {[%clk 0:00:16]} 51. Ka4 {[%clk 0:00:05]} 1/2-1/2


[Site "https://www.chess.com"]

[Event "Titled Tuesday Blitz August 1 Late 2023"]
[White "Vila Dupla, Aurelio"]
[Black "Chabris, Christopher"]
[WhiteFideId "2203383"]
[BlackFideId "2005263"]
[WhiteElo "2165"]
[BlackElo "2350"]
[Result "0-1"]
[Round "8"]
[TimeControl "180+1"]
[Date "2023.08.01"]
[WhiteClock "0:00:14"]
[BlackClock "0:00:39"]
[Board "109"]

1. Nf3 {[%clk 0:02:44]}  Nf6 {[%clk 0:02:59]} 2. d4 {[%clk 0:02:43]}  e6 {[%clk 0:02:58]} 3. g3 {[%clk 0:02:37]}  d5 {[%clk 0:02:53]} 4. Bg2 {[%clk 0:02:35]}  b5 {[%clk 0:02:53]} 5. O-O {[%clk 0:02:33]}  Bb7 {[%clk 0:02:51]} 6. b3 {[%clk 0:02:33]}  Nbd7 {[%clk 0:02:49]} 7. Ne5 {[%clk 0:02:33]}  c5 {[%clk 0:02:40]} 8. Nxd7 {[%clk 0:02:27]}  Qxd7 {[%clk 0:02:37]} 9. Ba3 {[%clk 0:02:11]}  b4 {[%clk 0:02:32]} 10. Bb2 {[%clk 0:02:10]}  Rc8 {[%clk 0:02:25]} 11. a3 {[%clk 0:02:07]}  a6 {[%clk 0:02:12]} 12. dxc5 {[%clk 0:02:02]}  Bxc5 {[%clk 0:02:11]} 13. axb4 {[%clk 0:02:01]}  Bxb4 {[%clk 0:02:10]} 14. Bxf6 {[%clk 0:01:58]}  gxf6 {[%clk 0:02:10]} 15. Qd4 {[%clk 0:01:58]}  Be7 {[%clk 0:02:02]} 16. c4 {[%clk 0:01:57]}  e5 {[%clk 0:01:53]} 17. Qd2 {[%clk 0:01:33]}  d4 {[%clk 0:01:34]} 18. Bxb7 {[%clk 0:01:29]}  Qxb7 {[%clk 0:01:34]} 19. Qa5 {[%clk 0:01:23]}  Rc6 {[%clk 0:01:24]} 20. Qd5 {[%clk 0:00:50]}  O-O {[%clk 0:01:14]} 21. Nd2 {[%clk 0:00:50]}  Rd8 {[%clk 0:01:13]} 22. Qf3 {[%clk 0:00:43]}  Qd7 {[%clk 0:01:04]} 23. g4 {[%clk 0:00:33]}  Kh8 {[%clk 0:01:00]} 24. Ra4 {[%clk 0:00:31]}  Rg8 {[%clk 0:00:56]} 25. h3 {[%clk 0:00:29]}  f5 {[%clk 0:00:55]} 26. Kh1 {[%clk 0:00:22]}  fxg4 {[%clk 0:00:51]} 27. Qxf7 {[%clk 0:00:22]}  g3 {[%clk 0:00:40]} 28. Qh5 {[%clk 0:00:14]}  g2+ {[%clk 0:00:39]} 0-1


[Site "https://www.chess.com"]

[Event "Titled Tuesday Blitz August 1 Late 2023"]
[White "Burke, Paul"]
[Black "Rego, Pedro Filipe"]
[WhiteFideId "2605767"]
[BlackFideId "1904310"]
[WhiteElo "1910"]
[BlackElo "2344"]
[Result "0-1"]
[Round "8"]
[TimeControl "180+1"]
[Date "2023.08.01"]
[WhiteClock "0:00:19"]
[BlackClock "0:00:58"]
[Board "110"]

1. e4 {[%clk 0:03:00]}  c5 {[%clk 0:02:56]} 2. Nf3 {[%clk 0:03:00]}  d6 {[%clk 0:02:57]} 3. d4 {[%clk 0:03:00]}  cxd4 {[%clk 0:02:58]} 4. c3 {[%clk 0:03:00]}  Nf6 {[%clk 0:02:59]} 5. Bd3 {[%clk 0:02:59]}  dxc3 {[%clk 0:02:58]} 6. Nxc3 {[%clk 0:02:59]}  g6 {[%clk 0:02:59]} 7. O-O {[%clk 0:02:58]}  Bg7 {[%clk 0:02:59]} 8. h3 {[%clk 0:02:55]}  O-O {[%clk 0:02:58]} 9. Bg5 {[%clk 0:02:55]}  Nc6 {[%clk 0:02:58]} 10. Rc1 {[%clk 0:02:54]}  Bd7 {[%clk 0:02:53]} 11. Qd2 {[%clk 0:02:53]}  Rc8 {[%clk 0:02:53]} 12. Bh6 {[%clk 0:02:52]}  Qa5 {[%clk 0:02:53]} 13. Bxg7 {[%clk 0:02:52]}  Kxg7 {[%clk 0:02:53]} 14. Rfd1 {[%clk 0:02:41]}  Qh5 {[%clk 0:02:50]} 15. Nh2 {[%clk 0:02:33]}  Qa5 {[%clk 0:02:41]} 16. f4 {[%clk 0:02:25]}  a6 {[%clk 0:02:40]} 17. Nf3 {[%clk 0:02:18]}  Qb6+ {[%clk 0:02:25]} 18. Kh1 {[%clk 0:02:16]}  Nh5 {[%clk 0:02:19]} 19. Kh2 {[%clk 0:02:16]}  Nd4 {[%clk 0:02:17]} 20. Nh4 {[%clk 0:02:02]}  Bc6 {[%clk 0:01:57]} 21. g4 {[%clk 0:01:59]}  Nf6 {[%clk 0:01:56]} 22. g5 {[%clk 0:01:38]}  Nh5 {[%clk 0:01:50]} 23. Rf1 {[%clk 0:01:35]}  e6 {[%clk 0:01:44]} 24. Ne2 {[%clk 0:01:27]}  Nxe2 {[%clk 0:01:33]} 25. Qxe2 {[%clk 0:01:04]}  e5 {[%clk 0:01:32]} 26. f5 {[%clk 0:01:00]}  Nf4 {[%clk 0:01:30]} 27. Rxf4 {[%clk 0:00:51]}  exf4 {[%clk 0:01:30]} 28. Rf1 {[%clk 0:00:49]}  Bb5 {[%clk 0:01:27]} 29. f6+ {[%clk 0:00:42]}  Kh8 {[%clk 0:01:25]} 30. Bxb5 {[%clk 0:00:37]}  Qxb5 {[%clk 0:01:24]} 31. Qf2 {[%clk 0:00:34]}  Qd3 {[%clk 0:01:18]} 32. Qxf4 {[%clk 0:00:29]}  Rc2+ {[%clk 0:01:18]} 33. Ng2 {[%clk 0:00:28]}  Re8 {[%clk 0:01:14]} 34. Qg4 {[%clk 0:00:19]}  Qxf1 {[%clk 0:00:58]} 0-1


[Site "https://www.chess.com"]

[Event "Titled Tuesday Blitz August 1 Late 2023"]
[White "ElenGajger"]
[Black "Cooper, Aaron"]
[BlackFideId "2634945"]
[WhiteElo "2527"]
[BlackElo "2313"]
[Result "1-0"]
[Round "8"]
[TimeControl "180+1"]
[Date "2023.08.01"]
[WhiteClock "0:01:12"]
[BlackClock "0:00:00"]
[Board "111"]

1. e4 {[%clk 0:02:59]}  c5 {[%clk 0:02:56]} 2. Nc3 {[%clk 0:02:55]}  Nc6 {[%clk 0:02:56]} 3. Bb5 {[%clk 0:02:54]}  Nd4 {[%clk 0:02:54]} 4. Bc4 {[%clk 0:02:52]}  e6 {[%clk 0:02:53]} 5. Nf3 {[%clk 0:02:52]}  Ne7 {[%clk 0:02:49]} 6. O-O {[%clk 0:02:52]}  Nec6 {[%clk 0:02:48]} 7. Nxd4 {[%clk 0:02:52]}  Nxd4 {[%clk 0:02:46]} 8. Ne2 {[%clk 0:02:53]}  Be7 {[%clk 0:02:43]} 9. Nxd4 {[%clk 0:02:52]}  cxd4 {[%clk 0:02:44]} 10. c3 {[%clk 0:02:50]}  Qb6 {[%clk 0:02:35]} 11. d3 {[%clk 0:02:41]}  O-O {[%clk 0:02:29]} 12. cxd4 {[%clk 0:02:40]}  Qxd4 {[%clk 0:02:28]} 13. Qc2 {[%clk 0:02:39]}  Bf6 {[%clk 0:02:25]} 14. Rb1 {[%clk 0:02:38]}  d5 {[%clk 0:02:14]} 15. Be3 {[%clk 0:02:36]}  Qe5 {[%clk 0:02:10]} 16. Bb3 {[%clk 0:02:31]}  dxe4 {[%clk 0:01:45]} 17. dxe4 {[%clk 0:02:31]}  Bd7 {[%clk 0:01:36]} 18. f4 {[%clk 0:02:28]}  Qh5 {[%clk 0:01:36]} 19. Bc4 {[%clk 0:02:14]}  Rac8 {[%clk 0:01:32]} 20. Qb3 {[%clk 0:02:10]}  b5 {[%clk 0:01:29]} 21. Bd3 {[%clk 0:02:10]}  e5 {[%clk 0:01:14]} 22. f5 {[%clk 0:02:00]}  a6 {[%clk 0:01:07]} 23. Rbc1 {[%clk 0:01:59]}  Bg5 {[%clk 0:01:04]} 24. Bxg5 {[%clk 0:01:54]}  Qxg5 {[%clk 0:01:04]} 25. Rxc8 {[%clk 0:01:48]}  Rxc8 {[%clk 0:01:03]} 26. f6 {[%clk 0:01:49]}  Bh3 {[%clk 0:00:56]} 27. Rf2 {[%clk 0:01:39]}  Rc1+ {[%clk 0:00:54]} 28. Bf1 {[%clk 0:01:39]}  Rxf1+ {[%clk 0:00:26]} 29. Kxf1 {[%clk 0:01:39]}  Qc1+ {[%clk 0:00:26]} 30. Ke2 {[%clk 0:01:40]}  Bg4+ {[%clk 0:00:25]} 31. Kd3 {[%clk 0:01:38]}  Qc5 {[%clk 0:00:16]} 32. Qd5 {[%clk 0:01:29]}  Qc8 {[%clk 0:00:02]} 33. fxg7 {[%clk 0:01:25]}  Be6 {[%clk 0:00:02]} 34. Qxe5 {[%clk 0:01:21]}  Qc4+ {[%clk 0:00:03]} 35. Ke3 {[%clk 0:01:20]}  Qb4 {[%clk 0:00:00]} 36. Rd2 {[%clk 0:01:12]} 1-0


[Site "https://www.chess.com"]

[Event "Titled Tuesday Blitz August 1 Late 2023"]
[White "Ahn, Hongjin"]
[Black "Castro Silva, Moises Antonio"]
[WhiteFideId "13201492"]
[BlackFideId "3909794"]
[WhiteElo "2311"]
[BlackElo "2440"]
[Result "0-1"]
[Round "8"]
[TimeControl "180+1"]
[Date "2023.08.01"]
[WhiteClock "0:00:00"]
[BlackClock "0:00:05"]
[Board "112"]

1. e4 {[%clk 0:01:51]}  c5 {[%clk 0:02:58]} 2. c3 {[%clk 0:01:46]}  Nf6 {[%clk 0:02:58]} 3. e5 {[%clk 0:01:46]}  Nd5 {[%clk 0:02:59]} 4. d4 {[%clk 0:01:46]}  d6 {[%clk 0:03:00]} 5. Bc4 {[%clk 0:01:44]}  dxe5 {[%clk 0:02:55]} 6. dxe5 {[%clk 0:01:43]}  Be6 {[%clk 0:02:56]} 7. Nf3 {[%clk 0:01:39]}  Nc6 {[%clk 0:02:56]} 8. O-O {[%clk 0:01:22]}  g6 {[%clk 0:02:56]} 9. Re1 {[%clk 0:00:59]}  Bg7 {[%clk 0:02:55]} 10. Qe2 {[%clk 0:00:52]}  Qc7 {[%clk 0:02:47]} 11. Nbd2 {[%clk 0:00:49]}  O-O {[%clk 0:02:44]} 12. Nf1 {[%clk 0:00:40]}  Rfd8 {[%clk 0:02:13]} 13. Ng3 {[%clk 0:00:37]}  h6 {[%clk 0:01:47]} 14. Bd2 {[%clk 0:00:34]}  Na5 {[%clk 0:01:46]} 15. Bd3 {[%clk 0:00:32]}  c4 {[%clk 0:01:46]} 16. Bc2 {[%clk 0:00:28]}  b5 {[%clk 0:01:45]} 17. Rad1 {[%clk 0:00:24]}  Nc6 {[%clk 0:01:44]} 18. Be4 {[%clk 0:00:17]}  Rd7 {[%clk 0:01:26]} 19. h4 {[%clk 0:00:17]}  Rad8 {[%clk 0:01:02]} 20. h5 {[%clk 0:00:17]}  Nxe5 {[%clk 0:00:51]} 21. Nxe5 {[%clk 0:00:16]}  Qxe5 {[%clk 0:00:48]} 22. hxg6 {[%clk 0:00:13]}  Nf6 {[%clk 0:00:28]} 23. gxf7+ {[%clk 0:00:11]}  Bxf7 {[%clk 0:00:29]} 24. Bh7+ {[%clk 0:00:09]}  Nxh7 {[%clk 0:00:28]} 25. Qxe5 {[%clk 0:00:10]}  Bxe5 {[%clk 0:00:28]} 26. Rxe5 {[%clk 0:00:09]}  Rxd2 {[%clk 0:00:28]} 27. Rxd2 {[%clk 0:00:09]}  Rxd2 {[%clk 0:00:29]} 28. Rxe7 {[%clk 0:00:10]}  Rxb2 {[%clk 0:00:27]} 29. Rxa7 {[%clk 0:00:08]}  Rc2 {[%clk 0:00:24]} 30. Nf5 {[%clk 0:00:08]}  Be6 {[%clk 0:00:04]} 31. Nxh6+ {[%clk 0:00:08]}  Kh8 {[%clk 0:00:04]} 32. Ra8+ {[%clk 0:00:05]}  Kg7 {[%clk 0:00:03]} 33. Ra7+ {[%clk 0:00:03]}  Kxh6 {[%clk 0:00:03]} 34. f4 {[%clk 0:00:03]}  Kg6 {[%clk 0:00:02]} 35. g4 {[%clk 0:00:03]}  Bxg4 {[%clk 0:00:02]} 36. Ra6+ {[%clk 0:00:04]}  Kf5 {[%clk 0:00:02]} 37. Rh6 {[%clk 0:00:03]}  Nf6 {[%clk 0:00:02]} 38. Rh4 {[%clk 0:00:02]}  Ne4 {[%clk 0:00:02]} 39. Rh8 {[%clk 0:00:02]}  Rc1+ {[%clk 0:00:03]} 40. Kg2 {[%clk 0:00:02]}  Kxf4 {[%clk 0:00:04]} 41. Rf8+ {[%clk 0:00:00]}  Bf5 {[%clk 0:00:05]} 0-1


[Site "https://www.chess.com"]

[Event "Titled Tuesday Blitz August 1 Late 2023"]
[White "The_Straightforward_Rook"]
[Black "Omariev, Maksim"]
[BlackFideId "4193423"]
[WhiteElo "2308"]
[BlackElo "2436"]
[Result "0-1"]
[Round "8"]
[TimeControl "180+1"]
[Date "2023.08.01"]
[WhiteClock "0:02:35"]
[BlackClock "0:02:23"]
[Board "113"]

1. e4 {[%clk 0:03:00]}  c5 {[%clk 0:02:58]} 2. d4 {[%clk 0:02:58]}  cxd4 {[%clk 0:02:58]} 3. c3 {[%clk 0:02:59]}  dxc3 {[%clk 0:02:59]} 4. Nxc3 {[%clk 0:02:59]}  Nc6 {[%clk 0:03:00]} 5. Bc4 {[%clk 0:02:59]}  e6 {[%clk 0:03:00]} 6. Nf3 {[%clk 0:02:59]}  a6 {[%clk 0:03:01]} 7. O-O {[%clk 0:02:59]}  Nge7 {[%clk 0:03:01]} 8. Qe2 {[%clk 0:02:57]}  Ng6 {[%clk 0:03:01]} 9. Rd1 {[%clk 0:02:56]}  Be7 {[%clk 0:03:02]} 10. h3 {[%clk 0:02:56]}  O-O {[%clk 0:03:01]} 11. Be3 {[%clk 0:02:56]}  b5 {[%clk 0:03:00]} 12. Rac1 {[%clk 0:02:57]}  bxc4 {[%clk 0:03:00]} 13. Qxc4 {[%clk 0:02:57]}  a5 {[%clk 0:02:52]} 14. Nb5 {[%clk 0:02:56]}  Ba6 {[%clk 0:02:49]} 15. a4 {[%clk 0:02:56]}  Nb4 {[%clk 0:02:42]} 16. Qb3 {[%clk 0:02:52]}  Bxb5 {[%clk 0:02:40]} 17. axb5 {[%clk 0:02:53]}  d5 {[%clk 0:02:41]} 18. exd5 {[%clk 0:02:52]}  Nxd5 {[%clk 0:02:39]} 19. b6 {[%clk 0:02:52]}  Bb4 {[%clk 0:02:36]} 20. b7 {[%clk 0:02:50]}  Rb8 {[%clk 0:02:36]} 21. Nd4 {[%clk 0:02:46]}  Rxb7 {[%clk 0:02:33]} 22. Nc6 {[%clk 0:02:35]}  Qa8 {[%clk 0:02:23]} 0-1


[Site "https://www.chess.com"]